Cogmind - Beta 11 @@@ ROGUE MODE // 2022.04.18 @ 19:55:26 Player: RNGesus Result: Destroyed by DAS Turret with DAS Cannon Performance ------------- Evolutions (0) 0 Regions Visited (3) 600 Robots Destroyed (17) 85 Value Destroyed (355) 355 Prototype IDs (26) 520 Alien Tech Used (0) 0 Bonus (-171) -171 TOTAL SCORE: 1389 Bonus ------- Follower Combat Kills 91 Aligned with FarCom 300 Friendly Fire -562 Cogmind --------- Core Integrity 0/250 Matter 238/300 Energy 98/100 System Corruption 1% Temperature Cool (0) Movement Core (50) Location -10/Exiles Parts ------- > --- POWER (1) -------- (None) > --- PROPULSION (2) --- (None) > --- UTILITY (2) ------ Core Shielding > --- WEAPON (2) ------- Assault Rifle > --- INVENTORY (5) ---- Core Shielding Propulsion Shielding Weapon Shielding Heavy Assault Rifle Peak State ------------ > --- POWER ------------ Ion Engine > --- PROPULSION ------- Light Treads Light Treads > --- UTILITY ---------- Huge Storage Unit Core Shielding > --- WEAPON ----------- AWS/Gauss > --- INVENTORY -------- Light Ion Engine Light Treads Light Treads Experimental Heat Sink Large Storage Unit Gravity Neutralizer Seismic Detector Experimental Targeting Computer Core Shielding Propulsion Shielding Weapon Shielding 8R-AWN's Armor/EX Assault Rifle Assault Rifle Assault Rifle Assault Rifle Light Assault Rifle Light Assault Rifle Heavy Assault Rifle Grenade Launcher Rocket Launcher Mining Claw Mining Claw [Rating: 28] Favorites ----------- Power Ion Engine Engine Ion Engine Propulsion Light Treads Treads Light Treads Wheel Wheel Utility Core Shielding Device Experimental Heat Sink Storage Huge Storage Unit Protection Core Shielding Weapon Assault Rifle Energy Gun EM Pulse Gun Ballistic Gun Assault Rifle Launcher Rocket Launcher Build | -11 -10 -10 -10 ------- Run | Scr Mat Min Exi Slots Evolved . | . . . . Power . | . . . . Propulsion . | . . . . Utility . | . . . . Weapon . | . . . . Parts Attached 33 | 6 13 3 11 Power 1 | 1 . . . Engine 1 | 1 . . . Core . | . . . . Reactor . | . . . . Propulsion 7 | 2 . 2 3 Treads 6 | 2 . 1 3 Leg . | . . . . Wheel 1 | . . 1 . Hover . | . . . . Flight . | . . . . Utility 8 | 1 2 1 4 Device 4 | . . . 4 Storage 3 | 1 1 1 . Processor . | . . . . Hackware . | . . . . Protection 1 | . 1 . . Artifact . | . . . . Weapon 17 | 2 11 . 4 Energy Gun 6 | 2 4 . . Energy Cannon . | . . . . Ballistic Gun 5 | . 3 . 2 Ballistic Cannon . | . . . . Launcher 6 | . 4 . 2 Special Weapon . | . . . . Impact Weapon . | . . . . Slashing Weapon . | . . . . Piercing Weapon . | . . . . Special Melee Weapon . | . . . . Unidentified Prototypes 3 | . . . 3 Parts Lost 5 | . . . 5 Power 1 | . . . 1 Propulsion 3 | . . . 3 Utility . | . . . . Weapon 1 | . . . 1 Highest Loss Streak 4 | . . . 4 To Critical Strikes 1 | . . . 1 Average Slot Usage (%) 93 | . 92 100 87 Engine 13 | . 14 14 13 Treads 21 | . 28 15 20 Wheel 6 | . . 12 6 Storage 13 | . 14 14 12 Protection 11 | . 6 14 14 Energy Gun 5 | . 16 . . Ballistic Gun 18 | . 10 28 16 Naked Turns . | . . . . Heaviest Build 96 | 14 30 90 96 Greatest Support 40 | 40 40 40 40 Greatest Overweight (x) 9 | 3 . 8 9 Average Overweight (x) 3 | . . 7 5 Largest Inventory Capacity 25 | 8 15 25 25 Average Capacity 19 | 7 12 24 23 Most Carried 25 | 3 15 21 25 Average Carried 16 | 1 10 17 21 Final Capacity 25 | 8 15 25 5 Final Carried 20 | 3 15 20 4 Class Distribution -------------------- 100% | Mutant Dominant Class ---------------- Mutant | -10/Materials Mutant | -10/Mines Mutant | -10/Exiles Resources | -11 -10 -10 -10 ----------- Run | Scr Mat Min Exi Matter Collected 671 | 257 113 207 94 Remotely . | . . . . Salvage Created 461 | . 246 74 141 Parts 31 | . 22 3 6 Haulers Intercepted 2 | . 2 . . Recyclers Shooed 4 | . 3 1 . Parts Field Recycled . | . . . . Retrieved Matter . | . . . . Parts Self-Destructed . | . . . . Prevented . | . . . . Kills | -11 -10 -10 -10 ------- Run | Scr Mat Min Exi Combat Hostiles Destroyed 16 | . 10 1 5 Guns 3 | . 1 1 1 AOE 13 | . 9 . 4 Classes Destroyed 7 | . 5 1 1 Worker 1 | . . 1 . Tunneler 1 | . 1 . . Hauler 2 | . 2 . . Watcher 1 | . 1 . . Swarmer 6 | . 6 . . Grunt 5 | . 4 1 . Assembled 7 | . . . 7 Best Kill Streak 4 | . 4 1 4 Combat Bots Only 4 | . 3 1 4 Max Kills in Single Turn 3 | . 3 1 3 Gunslinging . | . . . . Exploded 2 | . 2 . 2 Melee . | . . . . Uniques/NPCs Destroyed 1 | . . . 1 8R-AWN (-10/Exiles) Combat | -11 -10 -10 -10 -------- Run | Scr Mat Min Exi Damage Taken 1372 | . 216 . 1156 Core 297 | . 44 . 253 Absorbed by Shields . | . . . . Redirected to Shielding 48 | . 2 . 46 Core Remaining (%) 100 | 100 . . . Volleys Fired 35 | . 25 5 5 Largest 2 | . 2 1 1 Hottest 80 | . 80 20 33 Shots Fired 104 | . 38 5 61 Gun 87 | . 26 5 56 Cannon . | . . . . Launcher 17 | . 12 . 5 Special . | . . . . Kinetic 61 | . . 5 56 Thermal . | . . . . Explosive 17 | . 12 . 5 Electromagnetic 26 | . 26 . . Robot Hit Streak 18 | . 8 2 18 Robot Miss Streak 6 | . 6 1 2 Penetration Max . | . . . . Secondary Targets . | . . . . Autonomous 56 | . . . 56 Shots Hit Robots 69 | . 18 3 48 Core Hits 43 | . 23 2 18 Critical Kills . | . . . . Critical Parts Destroyed . | . . . . Critical Strikes 1 | . . . 1 Destroy 1 | . . . 1 Melee Attacks . | . . . . Impact . | . . . . Slashing . | . . . . Piercing . | . . . . Sneak Attacks . | . . . . Combat Hostiles . | . . . . Follow-up Attacks . | . . . . Damage Inflicted 2747 | . 900 49 1798 Guns 1583 | . 178 49 1356 Cannons . | . . . . Explosions 1152 | . 710 . 442 Melee . | . . . . Ramming 12 | . 12 . . Kinetic 1405 | . . 49 1356 Thermal . | . . . . Explosive 1067 | . 625 . 442 Electromagnetic 263 | . 263 . . Impact . | . . . . Slashing . | . . . . Piercing . | . . . . Highest Corruption 1 | . 1 1 1 Average Corruption 1 | . 1 1 1 Corruption Purged . | . . . . Corruption Blocked . | . . . . Effects 22 | . 1 13 8 Message Errors 2 | . . . 2 Matter Fused 5 | . . 3 2 Heat Flow Errors 3 | . . 3 . Energy Discharges 4 | . 1 1 2 Data Loss (minor) 6 | . . 4 2 Data Loss (major) 1 | . . 1 . Alerts 1 | . . 1 . Overload Shots . | . . . . Overflow Damage 8 | . . . 8 Projectiles . | . . . . Explosions 8 | . . . 8 Melee . | . . . . Knockbacks . | . . . . Impact . | . . . . Kinetic . | . . . . Secondary . | . . . . Self-Inflicted Damage 53 | . 53 . . Shots 2 | . 2 . . Rammed 1 | . 1 . . Targets Rammed 1 | . 1 . . Kicked . | . . . . Crushed . | . . . . Highest Temperature 230 | . 54 230 . Average Temperature 54 | . 21 106 . Received Heat Transfer 15 | . 15 . . Effects 1 | . . 1 . Interference 1 | . . 1 . Siege Activations . | . . . . Robots Corrupted . | . . . . Combat Hostiles . | . . . . Parts Fried 1 | . 1 . . Impact Corruptions . | . . . . Robots Melted . | . . . . Combat Hostiles . | . . . . Parts Melted 1 | . . 1 . Heat Transferred . | . . . . Parts Sabotaged . | . . . . Parts Stolen . | . . . . Parts Stripped . | . . . . Power Chain Reactions . | . . . . Missiles Intercepted . | . . . . Alert | -11 -10 -10 -10 ------- Run | Scr Mat Min Exi Peak Influence 375 | . 375 101 . Initial 101 | . . 101 . Average 113 | . 180 52 . Maximum Alert Level 1 | . 1 . . Low Security (%) 74 | 100 47 100 . Level 1 25 | . 52 . . Level 2 . | . . . . Level 3 . | . . . . Level 4 . | . . . . Level 5 . | . . . . High Security . | . . . . Max Security . | . . . . Squads Dispatched 1 | . 1 . . Investigation 1 | . 1 . . Extermination . | . . . . Reinforcement . | . . . . Assault . | . . . . Garrison . | . . . . Intercept . | . . . . Searches Triggered . | . . . . Construction Impeded . | . . . . Haulers Reinforced . | . . . . Active Scanning Responses . | . . . . Cargo Convoy Interrupts . | . . . . Stealth | -11 -10 -10 -10 --------- Run | Scr Mat Min Exi Distress Signals 1 | . 1 . . Communications Jammed . | . . . . Distress Signals . | . . . . Times Spotted 42 | . 22 2 18 Peak Tracking Total 6 | . 5 2 6 Tactical Retreats 3 | . . . 3 Traps | -11 -10 -10 -10 ------- Run | Scr Mat Min Exi Traps Triggered 3 | . 3 . . Indirectly . | . . . . Trap Hack Attempts . | . . . . Triggered . | . . . . Disarmed . | . . . . Reprogrammed . | . . . . Reused . | . . . . Traps Extracted . | . . . . Installed . | . . . . Triggered . | . . . . Machines | -11 -10 -10 -10 ---------- Run | Scr Mat Min Exi Machines Disabled 12 | . 6 1 5 Max in Single Turn 2 | . 2 . 2 Machines Sabotaged . | . . . . Garrisons Compromised . | . . . . Overloaded Fab Kills . | . . . . Hacking | -11 -10 -10 -10 --------- Run | Scr Mat Min Exi Machines Accessed 5 | . 3 1 1 Terminals 4 | . 3 1 . Fabricators . | . . . . Repair Stations . | . . . . Recycling Units . | . . . . Scanalyzers . | . . . . Garrison Access . | . . . . Total Hacks 9 | . 6 2 1 Successful 4 | . 3 . 1 Failed 4 | . 2 2 . Catastrophic . | . . . . Database Lockouts 1 | . 1 . . Manual 7 | . 6 . 1 Terminals 8 | . 6 2 . Fabricators . | . . . . Repair Stations . | . . . . Recycling Units . | . . . . Scanalyzers . | . . . . Garrison Access . | . . . . Terminal Hacks 4 | . 3 . 1 Robot Analysis 2 | . 2 . . Recall Investigation 1 | . 1 . . EX-Prototype ID Bank 1 | . . . 1 Fabricator Hacks . | . . . . Repair Station Hacks . | . . . . Recycling Unit Hacks . | . . . . Scanalyzer . | . . . . Garrison Access Hacks . | . . . . Unauthorized Hacks . | . . . . Terminals . | . . . . Fabricators . | . . . . Repair Stations . | . . . . Recycling Units . | . . . . Scanalyzers . | . . . . Garrison Access . | . . . . Data Cores Recovered . | . . . . Used . | . . . . Hacking Detections 4 | . 3 1 . Full Trace Events . | . . . . Feedback Events . | . . . . Feedback Blocked . | . . . . Robot Schematics Acquired . | . . . . Robots Built . | . . . . Authchips . | . . . . Time . | . . . . Total Robot Build Rating . | . . . . Part Schematics Acquired . | . . . . Parts Built . | . . . . Authchips . | . . . . Time . | . . . . Total Part Build Rating . | . . . . Parts Repaired . | . . . . Time . | . . . . Parts Recycled . | . . . . Recycled Matter . | . . . . Retrieved Matter . | . . . . Retrieved Components . | . . . . Parts Scanalyzed . | . . . . Part Schematics Acquired . | . . . . Parts Damaged . | . . . . Bothacking | -11 -10 -10 -10 ------------ Run | Scr Mat Min Exi Used RIF Installer . | . . . . Robots Hacked . | . . . . Non-combat . | . . . . Combat . | . . . . Robot Hacks Applied . | . . . . Relay Couplers Released . | . . . . Fabnet Peak Effective % . | . . . . Robots Rewired . | . . . . Allies Hacked . | . . . . Hacks Repelled . | . . . . Allies | -11 -10 -10 -10 -------- Run | Scr Mat Min Exi Total Allies 3 | . . 3 . Largest Group 3 | . . 3 1 Highest-Rated Group 40 | . . 40 16 Highest-Rated Ally 16 | . . 16 16 Total Orders 1 | . . . 1 STAY 1 | . . . 1 Ally Attacks 22 | . . 21 1 Total Damage 292 | . . 292 . Kills 3 | . . 3 . Allies Corrupted . | . . . . Allies Melted . | . . . . Intel | -11 -10 -10 -10 ------- Run | Scr Mat Min Exi Robot Analysis Total 2 | . 2 . . Derelict Logs Recovered 1 | . . 1 . Drone Launches . | . . . . Drone Recoveries . | . . . . Exploration | -11 -10 -10 -10 ------------- Run | Scr Mat Min Exi Turns Passed 3471 | 63 1129 1128 1151 Spaces Moved 1713 | 35 640 554 484 Core 35 | 12 . . 23 Treads 910 | 23 640 50 197 Legs . | . . . . Wheels 768 | . . 504 264 Hover . | . . . . Flight . | . . . . Fastest Speed 50 | 50 160 160 50 Average Speed 191 | 149 160 197 228 Slowest Speed 480 | 200 160 320 480 Overloaded Moves . | . . . . Propulsion Burnouts . | . . . . Robots Hopped . | . . . . Cave-ins Triggered . | . . . . Exploration Rate (%) 64 | 3 97 99 60 Regions Visited 3 Branch Regions 2 Pre-discovered Areas 1 | . . 1 . Known Exits Taken . | . . . . Unknown Exits Taken 3 | 1 1 1 . Scrap Searched 1 | . . 1 . Spaces Dug 20 | . 20 . . Terrain Destroyed 101 | . 41 . 60 Melee . | . . . . Projectile 27 | . . . 27 AOE 74 | . 41 . 33 Terrain Rammed . | . . . . Walls Destroyed . | . . . . Machines Disabled . | . . . . Actions | -11 -10 -10 -10 --------- Run | Scr Mat Min Exi Total 1863 | 43 710 582 528 Wait 12 | . . 12 . Move 1710 | 34 639 553 484 Hop . | . . . . Pick Up 42 | 3 20 7 12 Fast Attach 14 | 6 4 . 4 Attach 6 | . . . 6 Detach 4 | . 1 . 3 Swap 13 | . 9 3 1 Drop 26 | . 11 2 13 Fire 35 | . 25 5 5 Melee . | . . . . Ram . | . . . . Kick . | . . . . Crush 1 | . 1 . . Escape Stasis . | . . . . Rewire . | . . . . Trap . | . . . . Miscellaneous . | . . . . Route ------- -11/Scrapyard -10/Materials (discovered 5 exits: [*Mat x3] / *Min x2) -10/Mines (discovered 3 exits: [*Mat x2] / *Exi) -10/Exiles History --------- Turn | Location | Event 23 | -11/Scrapyard | Discovered new exit (range 15) 64 | -11/Scrapyard | Entered Materials 64 | -10/Materials | Discovered new exit (range 7) 229 | -10/Materials | Discovered new exit (range 15) 310 | -10/Materials | Build established: Mutant 399 | -10/Materials | Discovered new exit (range 16) 522 | -10/Materials | Discovered new exit (range 16) 807 | -10/Materials | Discovered new exit (range 15) 1038 | -10/Materials | Central database locked down 1193 | -10/Materials | Entered Mines 1261 | -10/Mines | Received a Rocket Launcher from a helpful Derelict 1417 | -10/Mines | Discovered new exit (range 7) 1645 | -10/Mines | Discovered new exit (range 16) 1691 | -10/Mines | Assisted by bots powering up and referring to "LRC-V3" 1695 | -10/Mines | Learned location of Recycling (-7) 1859 | -10/Mines | Deemed a non-threat by the Exiles lab entrance 2313 | -10/Mines | Discovered new exit (range 5) 2321 | -10/Mines | Entered Exiles 2321 | -10/Exiles | Accompanied by 1 ally 2390 | -10/Exiles | Met 8R-AWN 2420 | -10/Exiles | Met EX-HEX 2502 | -10/Exiles | Met EX-BIN 2526 | -10/Exiles | Aligned with FarCom system 2528 | -10/Exiles | Given EX-Vault access code 2574 | -10/Exiles | Opened EX-Vault 2588 | -10/Exiles | Found AWS/Gauss 2631 | -10/Exiles | Warned to stay clear of 0b10 Research branches 2733 | -10/Exiles | Met EX-DEC 2856 | -10/Exiles | Attacked by the Exiles 2921 | -10/Exiles | Destroyed 8R-AWN 2932 | -10/Exiles | Found Prototype Processor 2948 | -10/Exiles | Found Prototype Protection 2959 | -10/Exiles | Found Prototype Device 3405 | -10/Exiles | Identified AS-neutralizer No. 17b 3451 | -10/Exiles | Core integrity fell below 50% 3461 | -10/Exiles | Core integrity fell below 20% 3472 | -10/Exiles | Destroyed by DAS Turret with DAS Cannon Last Messages --------------- 03380_ Acquired Weapon Shielding. 03385_ Acquired Core Shielding. 03387_ Acquired Propulsion Shielding. 03393_ Acquired Seismic Detector. 03394_ Dropped Seismic Detector. 03400_ Acquired Prototype Device. 03400_ Identified Gravity Neutralizer. 03401_ Dropped Gravity Neutralizer. 03405_ Acquired Prototype Device. 03405_ Identified AS-neutralizer No. 17b. 03406_ Dropped AS-neutralizer No. 17b. 03410_ Acquired Prototype Device. 03410_ Identified Exp. Heat Sink. 03412_ Dropped Exp. Heat Sink. 03452_ Lgt. Treads destroyed. 03458_ Knocked back. 03460_ Rocket Launcher destroyed. 03460_ Ion Engine destroyed. 03460_ Knocked back. 03463_ Acquired 5 matter. Map ----- +----------------------------------------------------+ | ????????????????????????????"" ???????????#" | | ????????????????????????????"" ???????????#" | | ???????????????????????????? ???????????#" | | ?????????????????????????????" "?????????##" # | | ?????????????????????????????# #????????##"" # | | ?????????????????????##????### ###?######"" # | | ?????????????????? """#####X# #"###""""""" # | | ????????????????? """""" " "" | | ????????????????? "" """ " | | ????????????????? " " | | ????????????????? | | ??????????????????# | | ???????????????????# | | ????????????????????# | | ?????????????????????#" | | ?????????????????????#""" """""" | | ????????????????????##" ######""" | | ????????????????????#"" ""##????##### | | ???????????????????##""" """##?????????# | | ???????????????????#""" """##??????????? | | ???????????????????#""" ""#???????????# | | ???????????????????#"" !%= ########??#### | | ???????????????????#""" * ## ####""" | | ???????????????????#"" """" | | ???????????????????##" t %% | | ????????????????????#""""@ % | | ????????????????????## % | | ?????????????????????#" " % " | | ?????????????????????#"""" % ""## ##" | | ?????????????????????#"" ""#### ### | | ?????????????????????#" """"##??# #?? | | ?????????????????????#""" """#???# #?? | | ?????????????????????## ""##???! ?? | | ??????????????????????#"" """##???#" ? | | ??????????????????????##""" ##????#" ? | | ???????????????????????##"""" ##?????#!!""!" | | ????????????????????????### #??????####### | | ??????????????????????????##### ##????????????? | | ??????????????????????????????## #?????????????? | | ???????????????????????????????# #?????????????? | | ???????????????????????????????# #?????????????? | | ???????????????????????????????# #?????????????? | | ???????????????????????????????# #?????????????? | | ???????????????????????????????# #?????????????? | | ???????????????????????????????# #?????????????? | | ???????????????????????????????# #?????????????? | | ???????????????????????????????# #?????????????? | | ???????????????????????????????? #?????????????? | | ???????????????????????????????? #?????????????? | | ???????????????????????????????? "?????????????? | +----------------------------------------------------+ Best States ------------- Heat Dissipation 25 Energy Generation 10 Energy Capacity 250 Matter Stores 300 Matter Capacity 300 Sight Range 16 Terrain Scan Density 10 Core Shielding 20 Evasion (%) 50 Recoil Reduction 2 Item Schematics ----------------- None Robot Schematics ------------------ None Fabricated ------------ Nothing Alien Tech Used ----------------- None Achievements -------------- None Challenges ------------ None Game ------ Seed AlphaSupersonicDetector Manual? 0 Play Time 00:15:02 Cumulative 340.2 hours Start 2022.04.18 @ 14:36:23 End 2022.04.18 @ 19:55:26 Sessions 1 Manual Loads 0 Difficulty Rogue Special Mode None Game No. 501 Rogue 501 Adventurer 0 Explorer 0 Win Type - Total 6 Types 4/0/1/1/0/0/0/0/0 Lore% 81 Gallery% 84 Achievement% 66 Wizard Run 0 Options --------- ASCII 0 Keyboard 1 Movement Numpad Keybinds 0 Fullscreen 2 Font 24/Smallcaps Map View 76x50 Tactical HUD 1 Map Filters NONE Filters NONE Steam 1 RUN: 9d28acaa-c31d-42bf-9fe2-554d292314bb